fUST/lending_fUST_20250108
["ID","MTS","AMOUNT","RATE_DAILY","PERIOD"]
[348085612,1736299628805,-420.0,0.00021192,2]
[348085613,1736299628828,-1189.90563061,0.00021314,3]
[348085614,1736299630141,-41.40436939,0.00021314,3]
[348085615,1736299630166,-1180.0,0.00021314,3]
[348085616,1736299630189,-1000.42,0.00021369,3]
[348085617,1736299630213,-500.0,0.00021369,3]
[348085618,1736299630242,-3726.83,0.00021369,3]
[348085619,1736299630265,-500.0,0.00021369,3]
[348085620,1736299630290,-500.0,0.00021369,3]
[348085621,1736299630312,-160.0,0.00021519,3]
[348085622,1736299630336,-1231.31,0.00021588,3]
[348085623,1736299630360,-1180.0,0.00021588,3]
[348085624,1736299630385,-1000.42,0.00021643,3]
[348085625,1736299630408,-500.0,0.00021643,3]
[348085626,1736299630435,-3726.83,0.00021643,3]
[348085627,1736299630459,-266.95,0.00021643,3]
[348085628,1736299630483,-500.0,0.00021643,3]
[348085629,1736299630508,-162.762063,0.00021661,2]
[348085630,1736299630653,-2081.0,0.00021682,2]
[348085631,1736299630677,-394.0,0.00021682,2]
[348085632,1736299630700,-231.27044457,0.000217,2]
[348085633,1736299630723,-812.652,0.0002183,2]
[348085634,1736299630748,-1231.31,0.00021862,3]
[348085635,1736299630772,-1180.0,0.00021862,3]
[348085636,1736299630794,-500.0,0.00021916,2]
[348085637,1736299630815,-500.0,0.00021916,2]
[348085638,1736299630838,-500.0,0.00021916,2]
[348085639,1736299630863,-500.0,0.00021916,2]
[348085640,1736299630888,-500.0,0.00021916,2]
[348085641,1736299630910,-209.66363151,0.00021916,2]
[348085642,1736299630931,-500.0,0.00021916,2]
[348085643,1736299630954,-350.22275011,0.00021916,2]
[348085644,1736299630977,-500.0,0.00021916,2]
[348085645,1736299631003,-500.0,0.00021916,2]
[348085646,1736299631027,-500.0,0.00021916,2]
[348085647,1736299631049,-500.0,0.00021916,2]
[348085648,1736299631071,-243.52032671,0.00021916,2]
[348085649,1736299631099,-500.0,0.00021916,2]
[348085650,1736299631121,-458.0,0.00021916,2]
[348085651,1736299631146,-500.0,0.00021916,2]
[348085652,1736299631171,-500.0,0.00021916,2]
[348085653,1736299631193,-500.0,0.00021916,2]
[348085654,1736299631217,-500.0,0.00021916,2]
[348085655,1736299631241,-596.12992388,0.00021916,2]
[348085656,1736299631266,-500.0,0.00021916,2]
[348085657,1736299631290,-500.0,0.00021916,2]
[348085658,1736299631314,-500.0,0.00021916,2]
[348085659,1736299631335,-544.51271567,0.00021916,2]
[348085660,1736299631359,-500.0,0.00021916,2]
[348085661,1736299631382,-500.0,0.00021916,2]
[348085662,1736299631406,-500.0,0.00021916,2]
[348085663,1736299631433,-500.0,0.00021916,2]
[348085664,1736299631456,-500.0,0.00021916,2]
[348085665,1736299631480,-500.0,0.00021916,2]
[348085666,1736299631504,-500.0,0.00021916,2]
[348085667,1736299631528,-500.0,0.00021916,2]
[348085668,1736299631552,-500.0,0.00021916,2]
[348085669,1736299631576,-500.0,0.00021916,2]
[348085670,1736299631600,-500.0,0.00021916,2]
[348085671,1736299631626,-500.0,0.00021916,2]
[348085672,1736299631653,-500.0,0.00021916,2]
[348085673,1736299631678,-500.0,0.00021916,2]
[348085674,1736299631702,-500.0,0.00021916,2]
[348085675,1736299631727,-500.0,0.00021916,2]
[348085676,1736299631750,-500.0,0.00021916,2]
[348085677,1736299631773,-500.0,0.00021916,2]
[348085678,1736299631799,-500.0,0.00021916,2]
[348085679,1736299631823,-500.0,0.00021916,2]
[348085680,1736299631848,-500.0,0.00021916,2]
[348085681,1736299631873,-500.0,0.00021916,2]
[348085682,1736299631901,-500.0,0.00021916,2]
[348085683,1736299631926,-500.0,0.00021916,2]
[348085684,1736299631950,-500.0,0.00021916,2]
[348085685,1736299631976,-500.0,0.00021916,2]
[348085686,1736299632001,-500.0,0.00021916,2]
[348085687,1736299632026,-500.0,0.00021916,2]
[348085688,1736299632051,-500.0,0.00021916,2]
[348085689,1736299632076,-500.0,0.00021916,2]
[348085690,1736299632103,-500.0,0.00021916,2]
[348085691,1736299632129,-500.0,0.00021916,2]
[348085692,1736299632153,-500.0,0.00021916,2]
[348085693,1736299632178,-500.0,0.00021916,2]
[348085694,1736299632203,-500.0,0.00021916,2]
[348085695,1736299632229,-500.0,0.00021916,2]
[348085696,1736299632253,-500.0,0.00021916,2]
[348085697,1736299632278,-500.0,0.00021916,2]
[348085698,1736299632303,-500.0,0.00021916,2]
[348085699,1736299632327,-181.97785939,0.00021916,2]
[348085700,1736299632359,-500.0,0.00021916,2]
[348085701,1736299632384,-500.0,0.00021916,2]
[348085702,1736299632409,-500.0,0.00021916,2]
[348085703,1736299632437,-500.0,0.00021916,2]
[348085704,1736299632463,-1000.42,0.00021917,3]
[348085705,1736299632484,-1000.0,0.00021917,5]
[348085706,1736299632505,-1000.0,0.00021917,5]
[348085707,1736299632526,-1000.0,0.00021917,5]
[348085708,1736299632546,-1000.0,0.00021917,5]
[348085709,1736299632567,-901.69350173,0.00021917,5]
[348085710,1736299632592,-500.0,0.00021917,3]
[348085711,1736299632620,-3726.83,0.00021917,3]
[348085712,1736299632644,-500.0,0.00021917,2]
[348085713,1736299632666,-500.0,0.00021917,2]
[348085714,1736299632688,-500.0,0.00021917,2]
[348085715,1736299632711,-500.0,0.00021917,2]
[348085716,1736299632733,-500.0,0.00021917,2]
[348085717,1736299632754,-500.0,0.00021917,2]
[348085718,1736299632776,-336.79,0.00021917,2]
[348085719,1736299632800,-500.0,0.00021917,3]
[348085720,1736299632821,-238.0,0.00022,2]
[348085721,1736299632844,-150.0,0.00022,2]
[348085722,1736299632868,-1231.31,0.00022136,3]
[348085723,1736299632893,-1180.0,0.00022136,3]
[348085724,1736299632917,-1000.42,0.00022191,3]
[348085725,1736299632941,-500.0,0.00022191,3]
[348085726,1736299632964,-3726.83,0.00022191,3]
[348085727,1736299632988,-500.0,0.00022191,3]
[348085728,1736299633011,-238.0,0.00022192,2]
[348085729,1736299633032,-151.0,0.00022299,7]
[348085730,1736299633057,-231.27044457,0.000223,2]
[348085731,1736299633082,-1231.31,0.0002241,3]
[348085732,1736299633107,-1000.42,0.00022465,3]
[348085733,1736299633132,-500.0,0.00022465,3]
[348085734,1736299633157,-3726.83,0.00022465,3]
[348085735,1736299633182,-500.0,0.00022465,3]
[348085736,1736299633204,-151.0,0.00022567,7]
[348085737,1736299633229,-1231.31,0.00022684,3]
[348085738,1736299633254,-1000.42,0.00022739,3]
[348085739,1736299633278,-500.0,0.00022739,3]
[348085740,1736299633301,-3726.83,0.00022739,3]
[348085741,1736299633325,-500.0,0.00022739,3]
[348085742,1736299633351,-186.9564952,0.00022751,2]
[348085743,1736299633471,-1200.0,0.00022812,2]
[348085744,1736299633494,-151.0,0.00022836,7]
[348085745,1736299633518,-160.0,0.00022891,4]
[348085746,1736299633540,-160.0,0.00022891,5]
[348085747,1736299633563,-150.0,0.000229,10]
[348085748,1736299633587,-231.27044457,0.000229,2]
[348085749,1736299633612,-3000.0,0.00022923,2]
[348085750,1736299633635,-1419.08951334,0.00022923,3]
[348085751,1736299633662,-1231.31,0.00022958,3]
[348085752,1736299633683,-500.0,0.00022973,2]
[348085753,1736299633705,-500.0,0.00022973,2]
[348085754,1736299633728,-575.01374031,0.00022987,2]
[348085755,1736299633753,-15054.46258923,0.00022988,3]
[348085756,1736299633776,-2469.33005226,0.00022988,3]
[348085757,1736299633798,-5707.29558905,0.00022988,7]
[348085758,1736299633820,-5707.29558905,0.00022988,7]
[348085759,1736299633856,-150.11,0.00022998,10]
[348085760,1736299633879,-150.11,0.00022998,10]
[348085761,1736299633901,-2017.2,0.00022998,7]
[348085762,1736299633924,-150.11,0.00022998,10]
[348085763,1736299633947,-150.11,0.00022998,10]
[348085764,1736299633971,-150.21,0.00022998,10]
[348085765,1736299633993,-500.0,0.00022998,10]
[348085766,1736299634018,-150.11,0.00022998,10]
[348085767,1736299634041,-150.11,0.00022998,10]
[348085768,1736299634063,-172172.52288181,0.00023,2]
[348085769,1736299634088,-1000.0,0.00023,23]
[348085770,1736299634112,-1000.0,0.00023,6]
[348085771,1736299634134,-10000.0,0.00023,15]
[348085772,1736299634157,-38371.68880635,0.00023,30]
[348085825,1736299832399,-1378.14367135,0.00018,2]
[348085827,1736299832410,-1552.84,0.00019178,2]
[348085829,1736299832419,-500.0,0.00019178,2]
[348085830,1736299832429,-500.0,0.00019178,2]
[348085832,1736299832439,-633.93303641,0.00019178,2]
[348085834,1736299832449,-300.0,0.00019451,2]
[348085836,1736299832461,-1545.87829225,0.00019452,3]
[348085839,1736299832475,-6.96170775,0.00019452,3]
[348085841,1736299832485,-455.26629225,0.00019452,3]
[348085947,1736299833601,-44.73370775,0.00019452,3]
[348085948,1736299833611,-500.0,0.00019452,3]
[348085950,1736299833621,-1552.84,0.00019726,3]
[348085952,1736299833631,-500.0,0.00019726,3]
[348085954,1736299833641,-375.29,0.00019726,3]
[348085956,1736299833651,-1552.84,0.0002,3]
[348085958,1736299833660,-392.81167011,0.0002,2]
[348085959,1736299833671,-183.93,0.0002,3]
[348085961,1736299833682,-1552.84,0.00020273,3]
[348085962,1736299833695,-1552.84,0.00020547,3]
[348085963,1736299833706,-672.59,0.000206,2]
[348085964,1736299833717,-150.0,0.000206,2]
[348085965,1736299833728,-295.60424314,0.00020821,3]
[348085991,1736299839529,-1257.23575686,0.00020821,3]
[348085992,1736299839540,-150.0,0.000209,2]
[348085993,1736299839550,-5616.82481045,0.00021,2]
[348085994,1736299839559,-1552.84,0.00021095,3]
[348085995,1736299839569,-420.0,0.00021192,2]
[348085996,1736299839579,-1552.84,0.00021369,3]
[348085997,1736299839588,-1552.84,0.00021643,3]
[348085998,1736299839598,-1552.84,0.00021917,3]
[348085999,1736299839608,-2554.77270003,0.00022,2]
[348086000,1736299839617,-1552.84,0.00022191,3]
[348086001,1736299839627,-1552.84,0.00022465,3]
[348086002,1736299839636,-340.88182141,0.00022697,7]
[348086003,1736299839646,-1552.84,0.00022739,3]
[348086004,1736299839655,-293.55431311,0.00022869,2]
[348086005,1736299839664,-288.85040328,0.00022869,2]
[348086006,1736299839674,-500.0,0.00022869,2]
[348086007,1736299839683,-500.0,0.00022869,2]
[348086008,1736299839692,-500.0,0.00022869,2]
[348086009,1736299839702,-500.0,0.00022869,2]
[348086010,1736299839711,-500.0,0.00022869,2]
[348086011,1736299839721,-282.9012022,0.00022869,2]
[348086012,1736299839731,-39663.24046825,0.0002287,2]
[348086022,1736299840167,-2948.1525873,0.0002287,2]
[348086027,1736299840225,-119573.8839619,0.0002287,2]
[348086029,1736299840235,-314.32231936,0.00022888,2]
[348086031,1736299840244,-858.44898509,0.00022888,2]
[348086032,1736299840253,-405.96031743,0.00022985,2]
[348086034,1736299840263,-4698.86127989,0.00022985,3]
[348086036,1736299840275,-2828.37001473,0.00022985,3]
[348086038,1736299840284,-1234.66502613,0.00022985,3]
[348086040,1736299840293,-12933.46495914,0.00022986,10]
[348086067,1736299843111,-439.4005095,0.00022986,10]
[348086090,1736299846099,-2510.72998679,0.00022986,10]
[348086092,1736299952547,1824.0,0.00025,120]
[348086093,1736300324230,162.762063,0.00013973,2]
[348086095,1736300844150,-1835.59,0.00019178,2]
[348086096,1736300844174,-163.78437572,0.00019178,2]
[348086097,1736300844198,-500.0,0.00019178,2]
[348086098,1736300844219,-300.0,0.00019451,2]
[348086099,1736300844242,-1835.59,0.00019452,3]
[348086100,1736300844267,-356.37264681,0.00019452,3]
[348086101,1736300844294,-154.24331916,0.00019724,3]
[348086102,1736300844318,-500.0,0.00019724,3]
[348086103,1736300844340,-500.0,0.00019724,3]
[348086104,1736300844364,-1835.59,0.00019726,3]
[348086105,1736300844386,-500.0,0.00019998,3]
[348086106,1736300844413,-500.0,0.00019998,3]
[348086107,1736300844437,-1835.59,0.0002,3]
[348086108,1736300844458,-1069.41212131,0.00020257,2]
[348086109,1736300844481,-500.0,0.00020272,3]
[348086110,1736300844506,-500.0,0.00020272,3]
[348086111,1736300844531,-1835.59,0.00020273,3]
[348086112,1736300844554,-500.0,0.00020546,3]
[348086113,1736300844578,-500.0,0.00020546,3]
[348086114,1736300844601,-1835.59,0.00020547,3]
[348086115,1736300844623,-500.0,0.0002082,3]
[348086116,1736300844646,-500.0,0.0002082,3]
[348086117,1736300844670,-346.0599704,0.0002082,3]
[348086118,1736300844704,-1835.59,0.00020821,3]
[348086119,1736300844726,-150.0,0.00020885,2]
[348086120,1736300844746,-605.8,0.00021,2]
[348086121,1736300844769,-500.0,0.00021094,3]
[348086122,1736300844792,-678.84,0.00021094,3]
[348086123,1736300844814,-500.0,0.00021094,3]
[348086124,1736300844840,-1835.59,0.00021095,3]
[348086125,1736300844863,-420.0,0.00021192,2]
[348086126,1736300844883,-172.488,0.00021368,2]
[348086127,1736300844903,-500.0,0.00021368,3]
[348086128,1736300844924,-678.84,0.00021368,3]
[348086129,1736300844944,-500.0,0.00021368,3]
[348086130,1736300844965,-1835.59,0.00021369,3]
[348086131,1736300844983,-200.92575262,0.00021543,2]
[348086132,1736300845002,-500.0,0.00021642,3]
[348086133,1736300845023,-678.84,0.00021642,3]
[348086134,1736300845045,-500.0,0.00021642,3]
[348086135,1736300845070,-1835.59,0.00021643,3]
[348086136,1736300845092,-5022.53925108,0.00021807,2]
[348086137,1736300845117,-796.386,0.0002185,2]
[348086138,1736300845140,-500.0,0.00021916,3]
[348086139,1736300845163,-678.84,0.00021916,3]
[348086140,1736300845186,-206.76799768,0.00021916,3]
[348086141,1736300845209,-1835.59,0.00021917,3]
[348086142,1736300845230,-394.0,0.00022038,2]
[348086143,1736300845253,-500.0,0.0002219,3]
[348086144,1736300845275,-678.84,0.0002219,3]
[348086145,1736300845298,-1835.59,0.00022191,3]
[348086146,1736300845322,-500.0,0.00022464,3]
[348086147,1736300845344,-678.84,0.00022464,3]
[348086148,1736300845368,-1835.59,0.00022465,3]
[348086149,1736300845388,-358.57824731,0.000225,4]
[348086150,1736300845411,-500.0,0.00022738,3]
[348086151,1736300845436,-678.84,0.00022738,3]
[348086152,1736300845466,-1835.59,0.00022739,3]
[348086153,1736300845487,-162.762063,0.00022759,2]
[348086154,1736300845507,-4005.5,0.000228,3]
[348086155,1736300845530,-604.27868742,0.000229,2]
[348086156,1736300845551,-1200.0,0.00022913,2]
[348086157,1736300845573,-151.80702425,0.0002297,2]
[348086158,1736300845595,-500.0,0.00022973,2]
[348086159,1736300845616,-363.08715226,0.00022983,2]
[348086160,1736300845638,-535.42584856,0.00022983,2]
[348086161,1736300845659,-314.1373723,0.00022983,2]
[348086162,1736300845678,-406.12740064,0.00022983,2]
[348086163,1736300845698,-510.25208061,0.00022983,2]
[348086164,1736300845724,-500.0,0.00022983,2]
[348086165,1736300845750,-500.0,0.00022983,2]
[348086166,1736300845774,-500.0,0.00022983,2]
[348086167,1736300845797,-500.0,0.00022983,2]
[348086168,1736300845822,-500.0,0.00022983,2]
[348086169,1736300845847,-399.47559702,0.00022983,2]
[348086170,1736300845872,-500.0,0.00022983,2]
[348086171,1736300845895,-500.0,0.00022983,2]
[348086172,1736300845919,-500.0,0.00022983,2]
[348086173,1736300845942,-500.0,0.00022983,2]
[348086174,1736300845966,-500.0,0.00022983,2]
[348086175,1736300845988,-500.0,0.00022983,2]
[348086176,1736300846012,-500.0,0.00022983,2]
[348086177,1736300846037,-500.0,0.00022983,2]
[348086178,1736300846061,-500.0,0.00022983,2]
[348086179,1736300846087,-500.0,0.00022983,2]
[348086180,1736300846113,-226.9934791,0.00022983,2]
[348086181,1736300846137,-500.0,0.00022983,2]
[348086182,1736300846160,-500.0,0.00022983,2]
[348086183,1736300846185,-500.0,0.00022983,2]
[348086184,1736300846208,-500.0,0.00022983,2]
[348086185,1736300846233,-500.0,0.00022983,2]
[348086186,1736300846256,-500.0,0.00022983,2]
[348086187,1736300846280,-500.0,0.00022983,2]
[348086188,1736300846304,-500.0,0.00022983,2]
[348086189,1736300846327,-500.0,0.00022983,2]
[348086190,1736300846352,-500.0,0.00022983,2]
[348086191,1736300846376,-500.0,0.00022983,2]
[348086192,1736300846401,-500.0,0.00022983,2]
[348086193,1736300846425,-500.0,0.00022983,2]
[348086194,1736300846449,-500.0,0.00022983,2]
[348086195,1736300846474,-500.0,0.00022983,2]
[348086196,1736300846499,-500.0,0.00022983,2]
[348086197,1736300846524,-500.0,0.00022983,2]
[348086198,1736300846551,-500.0,0.00022983,2]
[348086199,1736300846577,-500.0,0.00022983,2]
[348086200,1736300846602,-500.0,0.00022983,2]
[348086201,1736300846626,-500.0,0.00022983,2]
[348086202,1736300846651,-500.0,0.00022983,2]
[348086203,1736300846678,-500.0,0.00022983,2]
[348086204,1736300846703,-500.0,0.00022983,2]
[348086205,1736300846728,-500.0,0.00022983,2]
[348086206,1736300846754,-350.0,0.00022983,2]
[348086207,1736300846781,-500.0,0.00022983,2]
[348086208,1736300846806,-500.0,0.00022983,2]
[348086209,1736300846835,-500.0,0.00022983,2]
[348086210,1736300846857,-645.65522997,0.00022984,3]
[348086211,1736300847017,-151.0,0.00022984,7]
[348086212,1736300847040,-167.391907,0.00022984,7]
[348086213,1736300847062,-151.374367,0.00022984,7]
[348086214,1736300847083,-151.549985,0.00022986,7]
[348086215,1736300847107,-150.11,0.00022998,10]
[348086216,1736300847131,-150.11,0.00022998,10]
[348086217,1736300847152,-150.11,0.00022998,10]
[348086218,1736300847174,-150.11,0.00022998,10]
[348086219,1736300847195,-150.55005648,0.00022998,10]
[348086220,1736300847216,-500.0,0.00022998,10]
[348086221,1736300847237,-151.08029463,0.00022998,10]
[348086222,1736300847259,-151.83411872,0.00022998,10]
[348086223,1736300847280,-20490.77692433,0.00023,30]
[348086224,1736300847300,-2266.9,0.00023,14]
[348086225,1736300847322,-6948.59,0.00023,14]
[348086226,1736300847348,-152.96,0.00023,31]
[348086227,1736300847375,-152.96,0.00023,31]
[348086228,1736300847401,-152.96,0.00023,31]
[348086229,1736300847426,-152.96,0.00023,31]
[348086230,1736300847452,-152.96,0.00023,31]
[348086231,1736300847477,-152.96,0.00023,31]
[348086232,1736300847501,-152.96,0.00023,31]
[348086233,1736300847527,-152.96,0.00023,31]
[348086234,1736300847552,-152.96,0.00023,31]
[348086235,1736300847581,-152.96,0.00023,31]
[348086236,1736300847609,-152.96,0.00023,31]
[348086237,1736300847635,-152.96,0.00023,31]
[348086238,1736300847660,-152.96,0.00023,31]
[348086239,1736300847685,-152.96,0.00023,31]
[348086240,1736300847710,-152.96,0.00023,31]
[348086241,1736300847734,-500.0,0.00023012,3]
[348086242,1736300847757,-678.84,0.00023012,3]
[348086243,1736300847783,-1835.59,0.00023013,3]
[348086244,1736300847805,-238.0,0.00023014,2]
[348086245,1736300847829,-587.0,0.00023088,2]
[348086246,1736300847852,-6006.89,0.000231,2]
[348086247,1736300847874,-500.0,0.00023104,2]
[348086248,1736300847895,-151.0,0.00023104,15]
[348086249,1736300847916,-150.11,0.00023272,10]
[348086250,1736300847936,-150.11,0.00023272,10]
[348086251,1736300847957,-150.42014834,0.00023272,10]
[348086252,1736300847977,-200.61723756,0.00023272,10]
[348086253,1736300848000,-500.0,0.00023272,10]
[348086254,1736300848024,-500.0,0.00023286,3]
[348086255,1736300848047,-678.84,0.00023286,3]
[348086256,1736300848069,-1465.22,0.00023287,3]
[348086257,1736300848092,-1835.59,0.00023287,3]
[348086258,1736300848116,-6369.0,0.00023328,7]
[348086259,1736300848137,-416.61,0.0002348,2]
[348086260,1736300848159,-1000.0,0.00023521,2]
[348086261,1736300848181,-150.11,0.00023546,10]
[348086262,1736300848203,-201.04926498,0.00023546,10]
[348086263,1736300848224,-500.0,0.00023546,10]
[348086264,1736300848247,-500.0,0.0002356,3]
[348086265,1736300848270,-678.84,0.0002356,3]
[348086266,1736300848292,-1465.22,0.00023561,3]
[348086267,1736300848318,-1835.59,0.00023561,3]
[348086268,1736300848341,-250.4117405,0.0002382,10]
[348086269,1736300848371,-500.0,0.0002382,10]
[348086270,1736300848395,-500.0,0.00023834,3]
[348086271,1736300848420,-678.84,0.00023834,3]
[348086272,1736300848442,-1465.22,0.00023835,3]
[348086273,1736300848472,-1835.59,0.00023835,3]
[348086274,1736300848504,-152.96,0.000239,31]
[348086275,1736300848537,-152.96,0.000239,31]
[348086276,1736300848565,-152.96,0.000239,31]
[348086277,1736300848594,-152.96,0.000239,31]
[348086278,1736300848624,-152.96,0.000239,31]
[348086279,1736300848653,-152.96,0.000239,31]
[348086280,1736300848682,-152.96,0.000239,31]
[348086281,1736300848712,-152.96,0.000239,31]
[348086282,1736300848741,-152.96,0.000239,31]
[348086283,1736300848770,-152.96,0.000239,31]
[348086284,1736300848799,-152.96,0.000239,31]
[348086285,1736300848831,-152.96,0.000239,31]
[348086286,1736300848860,-152.96,0.000239,31]
[348086287,1736300848889,-152.96,0.000239,31]
[348086288,1736300848919,-152.96,0.000239,31]
[348086289,1736300848948,-152.96,0.000239,31]
[348086290,1736300848977,-152.96,0.000239,31]
[348086291,1736300849007,-152.96,0.000239,31]
[348086292,1736300849035,-152.96,0.000239,31]
[348086293,1736300849064,-152.96,0.000239,31]
[348086294,1736300849087,-50000.0,0.00024,15]
[348086295,1736300849113,-100000.0,0.00024,2]
[348086296,1736300849139,-500.0,0.00024094,10]
[348086297,1736300849165,-500.0,0.00024108,3]
[348086298,1736300849191,-678.84,0.00024108,3]
[348086299,1736300849217,-1465.22,0.00024109,3]
[348086300,1736300849246,-1835.59,0.00024109,3]
[348086301,1736300849269,-178.548078,0.0002411,2]
[348086302,1736300849296,-178.548078,0.0002411,41]
[348086303,1736300849322,-178.548078,0.0002411,80]
[348086304,1736300849347,-178.548078,0.0002411,119]
[348086305,1736300849374,-242.0,0.00024164,2]
[348086306,1736300849397,-500.0,0.00024259,2]
[348086307,1736300849420,-888.9743439,0.00024368,10]
[348086308,1736300849445,-500.0,0.00024382,3]
[348086309,1736300849471,-678.84,0.00024382,3]
[348086310,1736300849496,-1465.22,0.00024383,3]
[348086311,1736300849528,-1835.59,0.00024383,3]
[348086312,1736300849552,-150.0,0.00024484,2]
[348086313,1736300849573,-2937.90429063,0.000245,2]
[348086314,1736300849596,-1500.0,0.00024522,2]
[348086315,1736300849620,-1065.86732629,0.0002455,5]
[348086316,1736300849644,-6948.59,0.000246,14]
[348086317,1736300849670,-500.0,0.00024656,3]
[348086318,1736300849694,-678.84,0.00024656,3]
[348086319,1736300849716,-674.34,0.00024657,3]
[348086320,1736300849739,-1465.22,0.00024657,3]
[348086321,1736300849764,-1835.59,0.00024657,3]
[348086322,1736300849789,-200.0,0.00024658,15]
[348086323,1736300849814,-200.0,0.00024658,2]
[348086324,1736300849839,-380.0,0.00024658,2]
[348086325,1736300849862,-2266.9,0.000247,14]
[348086326,1736300849887,-6006.89,0.000248,2]
[348086327,1736300849916,-152.96,0.000248,31]
[348086328,1736300849943,-152.96,0.000248,31]
[348086329,1736300849970,-152.96,0.000248,31]
[348086330,1736300849996,-152.96,0.000248,31]
[348086331,1736300850024,-152.96,0.000248,31]
[348086332,1736300850051,-152.96,0.000248,31]
[348086333,1736300850220,-152.96,0.000248,31]
[348086334,1736300850246,-152.96,0.000248,31]
[348086335,1736300850272,-152.96,0.000248,31]
[348086336,1736300850298,-152.96,0.000248,31]
[348086337,1736300850324,-152.96,0.000248,31]
[348086338,1736300850349,-152.96,0.000248,31]
[348086339,1736300850374,-152.96,0.000248,31]
[348086340,1736300850400,-152.96,0.000248,31]
[348086341,1736300850425,-152.96,0.000248,31]
[348086342,1736300850451,-152.96,0.000248,31]
[348086343,1736300850477,-152.96,0.000248,31]
[348086344,1736300850502,-152.96,0.000248,31]
[348086345,1736300850527,-152.96,0.000248,31]
[348086346,1736300850553,-152.96,0.000248,31]
[348086347,1736300850575,-795.527,0.0002482,2]
[348086348,1736300850596,-10000.0,0.000249,30]
[348086349,1736300850619,-500.0,0.00024904,2]
[348086350,1736300850641,-500.0,0.00024904,2]
[348086351,1736300850664,-500.0,0.00024904,2]
[348086352,1736300850685,-500.0,0.00024904,2]
[348086353,1736300850707,-500.0,0.00024904,2]
[348086354,1736300850729,-500.0,0.00024904,2]
[348086355,1736300850750,-500.0,0.00024904,2]
[348086356,1736300850771,-197.61397774,0.00024904,2]
[348086357,1736300850795,-610.48699389,0.0002493,3]
[348086358,1736300850819,-678.84,0.0002493,3]
[348086359,1736300850846,-674.34,0.00024931,3]
[348086360,1736300850869,-1465.22,0.00024931,3]
[348086361,1736300850915,-1835.59,0.00024931,3]
[348086362,1736300850938,-1221.198467,0.0002494,10]
[348086363,1736300850962,-1000.0,0.0002496,10]
[348086364,1736300850985,-500.45065619,0.00024973,2]
[348086365,1736300851007,-161.25186816,0.00024973,2]
[348086366,1736300851030,-500.0,0.00024973,2]
[348086367,1736300851053,-428.88968746,0.00024973,2]
[348086368,1736300851075,-500.0,0.00024973,2]
[348086369,1736300851098,-162.52367628,0.00024973,2]
[348086370,1736300851125,-1000.0,0.0002498,10]
[348086371,1736300851149,-1000.5,0.00025,31]
[348086372,1736300851172,-500.5,0.00025,31]
[348086373,1736300851196,-212.8,0.00025,31]
[348086374,1736300851219,-207248.76486235,0.00025,7]
[348086375,1736300851242,-204.7165265,0.00025,2]
[348086376,1736300851266,-348.99691463,0.00025,2]